lending/lending_fUSD_20250719
["ID","MTS","AMOUNT","RATE_DAILY","PERIOD"]
[373254910,1752923487670,-480.0,0.00020164,2]
[373254911,1752923487679,-480.0,0.00020164,2]
[373254912,1752923487689,-480.0,0.00020164,2]
[373254913,1752923487699,-576.22,0.00020164,2]
[373254914,1752923487710,-480.0,0.00020164,2]
[373254915,1752923487719,-480.0,0.00020164,2]
[373254916,1752923487729,-480.0,0.00020164,2]
[373254917,1752923487739,-480.0,0.00020164,2]
[373254918,1752923487749,-1090.9,0.00020164,2]
[373254919,1752923487758,-505.4,0.00020164,2]
[373254920,1752923487769,-480.0,0.00020164,2]
[373254921,1752923487779,-2170.19,0.00020164,2]
[373254922,1752923487788,-1446.51,0.00020164,2]
[373254923,1752923487798,-2791.79,0.00020164,2]
[373254924,1752923487808,-699.459769,0.00020164,2]
[373254925,1752923487817,-3957.3,0.00020164,2]
[373254926,1752923487827,-2107.89,0.00020164,2]
[373254927,1752923487837,-719.45,0.00020164,2]
[373254928,1752923487847,-480.0,0.00020164,2]
[373254929,1752923487856,-799.26907,0.00020164,2]
[373254930,1752923487866,-765.049221,0.00020164,2]
[373254931,1752923487876,-572.96,0.00020164,2]
[373254932,1752923487885,-484.19,0.00020164,2]
[373254933,1752923487895,-480.0,0.00020164,2]
[373254934,1752923487904,-480.0,0.00020164,2]
[373254935,1752923487913,-480.0,0.00020164,2]
[373254936,1752923487923,-817.32,0.00020164,2]
[373254937,1752923487933,-2393.91,0.00020164,2]
[373254938,1752923487943,-707.73,0.00020164,2]
[373254939,1752923487953,-480.0,0.00020164,2]
[373254940,1752923487962,-1478.18,0.00020164,2]
[373254941,1752923487972,-480.0,0.00020164,2]
[373254942,1752923487982,-595.11,0.00020164,2]
[373254943,1752923487991,-782.12,0.00020164,2]
[373254944,1752923488001,-480.0,0.00020164,2]
[373254945,1752923488011,-853.27,0.00020164,2]
[373254946,1752923488021,-480.0,0.00020164,2]
[373254947,1752923488031,-1300.19,0.00020164,2]
[373254948,1752923488043,-480.0,0.00020164,2]
[373254949,1752923488053,-888.45,0.00020164,2]
[373254950,1752923488063,-779.19,0.00020164,2]
[373254951,1752923488074,-747.6,0.00020164,2]
[373254952,1752923488086,-501.9,0.00020164,2]
[373254953,1752923488097,-480.0,0.00020164,2]
[373254954,1752923488108,-480.0,0.00020164,2]
[373254955,1752923488118,-642.57,0.00020164,2]
[373254956,1752923488127,-516.27,0.00020164,2]
[373254957,1752923488137,-876.37,0.00020164,2]
[373254958,1752923488149,-3056.86,0.00020164,2]
[373254959,1752923488159,-1752.83,0.00020164,2]
[373254960,1752923488169,-480.0,0.00020164,2]
[373254961,1752923488179,-480.0,0.00020164,2]
[373254962,1752923488189,-595.0,0.00020164,2]
[373254963,1752923488199,-480.0,0.00020164,2]
[373254964,1752923488209,-698.66,0.00020164,2]
[373254965,1752923488221,-480.0,0.00020164,2]
[373254966,1752923488231,-1230.21,0.00020164,2]
[373254967,1752923488241,-1211.46,0.00020164,2]
[373254968,1752923488250,-1731.02,0.00020164,2]
[373254969,1752923488260,-480.0,0.00020164,2]
[373254970,1752923488270,-981.21,0.00020164,2]
[373254971,1752923488280,-4034.3,0.00020164,2]
[373254972,1752923488289,-480.0,0.00020164,2]
[373254973,1752923488299,-704.38,0.00020164,2]
[373254974,1752923488309,-480.0,0.00020164,2]
[373254975,1752923488319,-926.13,0.00020164,2]
[373254976,1752923488331,-480.0,0.00020164,2]
[373254977,1752923488343,-480.0,0.00020164,2]
[373254978,1752923488353,-18345.25,0.00020164,2]
[373254979,1752923488363,-1475.45,0.00020164,2]
[373254980,1752923488373,-1110.95,0.00020164,2]
[373254981,1752923488383,-1405.33,0.00020164,2]
[373254982,1752923488393,-480.0,0.00020164,2]
[373254983,1752923488403,-593.26,0.00020164,2]
[373254984,1752923488413,-2662.0,0.00020164,2]
[373254985,1752923488423,-496.53,0.00020164,2]
[373254986,1752923488433,-1500.91,0.00020164,2]
[373254987,1752923488443,-489.4,0.00020164,2]
[373254988,1752923488453,-594.51,0.00020164,2]
[373254989,1752923488463,-829.66,0.00020164,2]
[373254990,1752923488473,-566.69,0.00020164,2]
[373254991,1752923488483,-658.44,0.00020164,2]
[373254992,1752923488493,-578.11,0.00020164,2]
[373254993,1752923488503,-588.02,0.00020164,2]
[373254994,1752923488513,-204.92,0.00020164,2]
[373254995,1752923488523,-480.0,0.00020164,2]
[373254996,1752923488533,-2697.72,0.00020164,2]
[373254997,1752923488543,-480.0,0.00020164,2]
[373254998,1752923488553,-480.0,0.00020164,2]
[373254999,1752923488563,-870.46,0.00020164,2]
[373255000,1752923488573,-1772.6,0.00020164,2]
[373255001,1752923488583,-480.0,0.00020164,2]
[373255002,1752923488594,-480.0,0.00020164,2]
[373255003,1752923488604,-827.86,0.00020164,2]
[373255004,1752923488614,-480.0,0.00020164,2]
[373255005,1752923488624,-480.0,0.00020164,2]
[373255006,1752923488634,-793.88,0.00020164,2]
[373255007,1752923488643,-331.50447197,0.00020164,2]
[373255008,1752923488653,-497.53,0.00020164,2]
[373255009,1752923488664,-480.0,0.00020164,2]
[373255010,1752923488674,-557.4,0.00020164,2]
[373255011,1752923488684,-496.0,0.00020164,2]
[373255012,1752923488694,-480.0,0.00020164,2]
[373255013,1752923488704,-535.74,0.00020164,2]
[373255014,1752923488714,-616.76,0.00020164,2]
[373255015,1752923488724,-480.0,0.00020164,2]
[373255016,1752923488734,-480.0,0.00020164,2]
[373255017,1752923488744,-480.0,0.00020164,2]
[373255018,1752923488754,-480.0,0.00020164,2]
[373255019,1752923488764,-556.1,0.00020164,2]
[373255020,1752923488774,-480.0,0.00020164,2]
[373255021,1752923488784,-480.0,0.00020164,2]
[373255022,1752923488794,-480.0,0.00020164,2]
[373255023,1752923488804,-509.79,0.00020164,2]
[373255024,1752923488814,-158.408905,0.00020164,2]
[373255025,1752923488824,-155.886002,0.00020164,2]
[373255026,1752923488837,-480.0,0.00020164,2]
[373255027,1752923488847,-480.0,0.00020164,2]
[373255028,1752923488857,-488.36,0.00020164,2]
[373255029,1752923488868,-563.29,0.00020164,2]
[373255030,1752923488880,-518.34,0.00020164,2]
[373255031,1752923488890,-480.0,0.00020164,2]
[373255032,1752923488900,-480.0,0.00020164,2]
[373255033,1752923488911,-480.0,0.00020164,2]
[373255034,1752923488922,-480.0,0.00020164,2]
[373255035,1752923488934,-660.36,0.00020164,2]
[373255036,1752923488945,-563.78,0.00020164,2]
[373255037,1752923488956,-510.22,0.00020164,2]
[373255038,1752923488966,-2035.71,0.00020164,2]
[373255039,1752923488976,-480.0,0.00020164,2]
[373255040,1752923488986,-480.0,0.00020164,2]
[373255041,1752923488995,-1478.43,0.00020164,2]
[373255042,1752923489006,-480.0,0.00020164,2]
[373255043,1752923489016,-913.51,0.00020164,2]
[373255044,1752923489028,-480.0,0.00020164,2]
[373255045,1752923489039,-480.0,0.00020164,2]
[373255046,1752923489049,-1163.42,0.00020164,2]
[373255047,1752923489059,-2541.86,0.00020164,2]
[373255048,1752923489069,-2145.01,0.00020164,2]
[373255049,1752923489079,-480.0,0.00020164,2]
[373255050,1752923489089,-918.45,0.00020164,2]
[373255051,1752923489099,-480.0,0.00020164,2]
[373255052,1752923489109,-519.54,0.00020164,2]
[373255053,1752923489119,-500.0,0.00020173,2]
[373255054,1752923489129,-500.0,0.00020173,2]
[373255055,1752923489378,-500.0,0.00020173,2]
[373255056,1752923489390,-500.0,0.00020173,2]
[373255057,1752923489400,-500.0,0.00020173,2]
[373255058,1752923489410,-500.0,0.00020173,2]
[373255059,1752923489419,-501.3574056,0.00020173,2]
[373255060,1752923489429,-500.0,0.00020173,2]
[373255061,1752923489439,-335.03225348,0.00020173,2]
[373255062,1752923489449,-500.0,0.00020173,2]
[373255063,1752923489460,-158.85486757,0.00020173,2]
[373255064,1752923489471,-500.0,0.00020173,2]
[373255065,1752923489480,-500.2534699,0.00020173,2]
[373255066,1752923489491,-3762.98405744,0.00020235,2]
[373255067,1752923489501,-324.19,0.00020238,2]
[373255068,1752923489512,-1686.0,0.00020263,2]
[373255069,1752923489522,-2505.63,0.00020266,2]
[373255070,1752923489531,-243.19222865,0.00020273,2]
[373255071,1752923489541,-480.0,0.00020273,2]
[373255072,1752923489550,-480.0,0.00020273,2]
[373255073,1752923489560,-480.0,0.00020273,2]
[373255074,1752923489570,-1815.47,0.00020273,2]
[373255075,1752923489580,-480.0,0.00020273,2]
[373255076,1752923489591,-424.87,0.00020273,2]
[373255077,1752923489600,-480.0,0.00020273,2]
[373255078,1752923489610,-480.0,0.00020273,2]
[373255079,1752923489620,-263.76,0.00020273,2]
[373255080,1752923489629,-462.03,0.00020273,2]
[373255081,1752923489639,-600.68,0.00020273,2]
[373255082,1752923489649,-480.0,0.00020273,2]
[373255083,1752923489658,-480.0,0.00020273,2]
[373255084,1752923489668,-480.0,0.00020273,2]
[373255085,1752923489677,-480.0,0.00020273,2]
[373255086,1752923489686,-616.71,0.00020273,2]
[373255087,1752923489695,-1549.22,0.00020273,2]
[373255088,1752923489705,-960.6,0.00020273,2]
[373255089,1752923489715,-480.0,0.00020273,2]
[373255090,1752923489724,-480.0,0.00020273,2]
[373255091,1752923489735,-740.01,0.00020273,2]
[373255092,1752923489744,-611.46,0.00020273,2]
[373255093,1752923489754,-719.67,0.00020273,2]
[373255094,1752923489763,-480.0,0.00020273,2]
[373255095,1752923489772,-640.66,0.00020273,2]
[373255096,1752923489782,-3120.9,0.00020273,2]
[373255097,1752923489791,-480.0,0.00020273,2]
[373255098,1752923489800,-480.0,0.00020273,2]
[373255099,1752923489810,-480.0,0.00020273,2]
[373255100,1752923489820,-576.22,0.00020273,2]
[373255101,1752923489829,-480.0,0.00020273,2]
[373255102,1752923489840,-480.0,0.00020273,2]
[373255103,1752923489849,-480.0,0.00020273,2]
[373255104,1752923489859,-480.0,0.00020273,2]
[373255105,1752923489868,-1090.9,0.00020273,2]
[373255106,1752923489878,-505.4,0.00020273,2]
[373255107,1752923489890,-480.0,0.00020273,2]
[373255108,1752923489901,-2170.19,0.00020273,2]
[373255109,1752923489910,-1446.51,0.00020273,2]
[373255110,1752923489921,-2791.79,0.00020273,2]
[373255111,1752923489931,-3957.3,0.00020273,2]
[373255112,1752923489942,-2107.89,0.00020273,2]
[373255113,1752923489951,-719.45,0.00020273,2]
[373255114,1752923489961,-480.0,0.00020273,2]
[373255115,1752923489972,-572.96,0.00020273,2]
[373255116,1752923489982,-484.19,0.00020273,2]
[373255117,1752923489992,-480.0,0.00020273,2]
[373255118,1752923490001,-480.0,0.00020273,2]
[373255119,1752923490011,-480.0,0.00020273,2]
[373255120,1752923490021,-817.32,0.00020273,2]
[373255121,1752923490031,-2393.91,0.00020273,2]
[373255122,1752923490040,-480.0,0.00020273,2]
[373255123,1752923490049,-707.73,0.00020273,2]
[373255124,1752923490059,-1478.18,0.00020273,2]
[373255125,1752923490069,-480.0,0.00020273,2]
[373255126,1752923490079,-595.11,0.00020273,2]
[373255127,1752923490090,-782.12,0.00020273,2]
[373255128,1752923490099,-480.0,0.00020273,2]
[373255129,1752923490110,-853.27,0.00020273,2]
[373255130,1752923490119,-480.0,0.00020273,2]
[373255131,1752923490130,-1300.19,0.00020273,2]
[373255132,1752923490140,-480.0,0.00020273,2]
[373255133,1752923490153,-888.45,0.00020273,2]
[373255134,1752923490163,-779.19,0.00020273,2]
[373255135,1752923490173,-501.9,0.00020273,2]
[373255136,1752923490183,-747.6,0.00020273,2]
[373255137,1752923490194,-480.0,0.00020273,2]
[373255138,1752923490203,-480.0,0.00020273,2]
[373255139,1752923490212,-642.57,0.00020273,2]
[373255140,1752923490224,-516.27,0.00020273,2]
[373255141,1752923490235,-876.37,0.00020273,2]
[373255142,1752923490244,-3056.86,0.00020273,2]
[373255143,1752923490254,-1752.83,0.00020273,2]
[373255144,1752923490264,-480.0,0.00020273,2]
[373255145,1752923490275,-480.0,0.00020273,2]
[373255146,1752923490285,-480.0,0.00020273,2]
[373255147,1752923490295,-698.66,0.00020273,2]
[373255148,1752923490305,-480.0,0.00020273,2]
[373255149,1752923490315,-1230.21,0.00020273,2]
[373255150,1752923490324,-1211.46,0.00020273,2]
[373255151,1752923490334,-1731.02,0.00020273,2]
[373255152,1752923490345,-480.0,0.00020273,2]
[373255153,1752923490354,-981.21,0.00020273,2]
[373255154,1752923490364,-4034.3,0.00020273,2]
[373255155,1752923490374,-480.0,0.00020273,2]
[373255156,1752923490383,-704.38,0.00020273,2]
[373255157,1752923490393,-480.0,0.00020273,2]
[373255158,1752923490403,-926.13,0.00020273,2]
[373255159,1752923490413,-480.0,0.00020273,2]
[373255160,1752923490423,-480.0,0.00020273,2]
[373255161,1752923490433,-18345.25,0.00020273,2]
[373255162,1752923490443,-1475.45,0.00020273,2]
[373255163,1752923490452,-1110.95,0.00020273,2]
[373255164,1752923490462,-1405.33,0.00020273,2]
[373255165,1752923490472,-480.0,0.00020273,2]
[373255166,1752923490482,-593.26,0.00020273,2]
[373255167,1752923490491,-2662.0,0.00020273,2]
[373255168,1752923490501,-496.53,0.00020273,2]
[373255169,1752923490510,-1500.91,0.00020273,2]
[373255170,1752923490520,-489.4,0.00020273,2]
[373255171,1752923490530,-594.51,0.00020273,2]
[373255172,1752923490539,-829.66,0.00020273,2]
[373255173,1752923490549,-566.69,0.00020273,2]
[373255174,1752923490559,-658.44,0.00020273,2]
[373255175,1752923490569,-588.02,0.00020273,2]
[373255176,1752923490579,-480.0,0.00020273,2]
[373255177,1752923490589,-2697.72,0.00020273,2]
[373255178,1752923490599,-480.0,0.00020273,2]
[373255179,1752923490608,-480.0,0.00020273,2]
[373255180,1752923490618,-870.46,0.00020273,2]
[373255181,1752923490628,-1772.6,0.00020273,2]
[373255182,1752923490638,-480.0,0.00020273,2]
[373255183,1752923490650,-480.0,0.00020273,2]
[373255184,1752923490660,-827.86,0.00020273,2]
[373255185,1752923490670,-480.0,0.00020273,2]
[373255186,1752923490680,-480.0,0.00020273,2]
[373255187,1752923490689,-793.88,0.00020273,2]
[373255188,1752923490700,-497.53,0.00020273,2]
[373255189,1752923490710,-480.0,0.00020273,2]
[373255190,1752923490719,-557.4,0.00020273,2]
[373255191,1752923490730,-496.0,0.00020273,2]
[373255192,1752923490740,-480.0,0.00020273,2]
[373255193,1752923490750,-535.74,0.00020273,2]
[373255194,1752923490760,-616.76,0.00020273,2]
[373255195,1752923490769,-480.0,0.00020273,2]
[373255196,1752923490779,-480.0,0.00020273,2]
[373255197,1752923490788,-480.0,0.00020273,2]
[373255198,1752923490798,-480.0,0.00020273,2]
[373255199,1752923490808,-556.1,0.00020273,2]
[373255200,1752923490817,-480.0,0.00020273,2]
[373255201,1752923490827,-480.0,0.00020273,2]
[373255202,1752923490837,-480.0,0.00020273,2]
[373255203,1752923490848,-509.79,0.00020273,2]
[373255204,1752923490858,-480.0,0.00020273,2]
[373255205,1752923490868,-486.43,0.00020273,2]
[373255206,1752923490877,-488.36,0.00020273,2]
[373255207,1752923490887,-563.29,0.00020273,2]
[373255208,1752923490897,-518.34,0.00020273,2]
[373255209,1752923490907,-480.0,0.00020273,2]
[373255210,1752923490918,-454.15,0.00020273,2]
[373255211,1752923490930,-480.0,0.00020273,2]
[373255212,1752923490940,-480.0,0.00020273,2]
[373255213,1752923490951,-660.36,0.00020273,2]
[373255214,1752923490961,-563.78,0.00020273,2]
[373255215,1752923490971,-510.22,0.00020273,2]
[373255216,1752923490980,-2035.71,0.00020273,2]
[373255217,1752923490989,-480.0,0.00020273,2]
[373255218,1752923490999,-480.0,0.00020273,2]
[373255219,1752923491011,-1478.43,0.00020273,2]
[373255220,1752923491021,-480.0,0.00020273,2]
[373255221,1752923491031,-913.51,0.00020273,2]
[373255222,1752923491040,-480.0,0.00020273,2]
[373255223,1752923491050,-480.0,0.00020273,2]
[373255224,1752923491060,-1163.42,0.00020273,2]
[373255225,1752923491070,-2541.86,0.00020273,2]
[373255226,1752923491079,-2145.01,0.00020273,2]
[373255227,1752923491090,-629.9,0.00020273,2]
[373255228,1752923491099,-918.45,0.00020273,2]
[373255229,1752923491109,-480.0,0.00020273,2]
[373255230,1752923491118,-519.54,0.00020273,2]
[373255231,1752923491128,-15163.885,0.00020349,2]
[373255232,1752923491138,-345.794,0.00020349,2]
[373255233,1752923491152,-500.0,0.00020361,2]
[373255234,1752923491162,-150.0,0.00020361,2]
[373255235,1752923491172,-25000.0,0.00020362,2]
[373255236,1752923491182,-1445.69560113,0.00020368,2]
[373255237,1752923491193,-1500.0,0.00020368,2]
[373255238,1752923491203,-714.4579557,0.00020368,2]
[373255239,1752923491212,-1500.0,0.00020368,2]
[373255240,1752923491223,-1609.21,0.00020382,2]
[373255241,1752923491234,-480.0,0.00020383,2]
[373255242,1752923491243,-480.0,0.00020383,2]
[373255243,1752923491253,-480.0,0.00020383,2]
[373255244,1752923491263,-1815.47,0.00020383,2]
[373255245,1752923491272,-480.0,0.00020383,2]
[373255246,1752923491282,-314.72230607,0.00020383,2]
[373255247,1752923491292,-520.21,0.00020383,2]
[373255248,1752923491301,-480.0,0.00020383,2]
[373255249,1752923491311,-373.5,0.00020383,2]
[373255250,1752923491320,-374.4,0.00020383,2]
[373255251,1752923491330,-480.0,0.00020383,2]
[373255252,1752923491340,-1549.22,0.00020383,2]
[373255253,1752923491350,-960.6,0.00020383,2]
[373255254,1752923491359,-264.6,0.00020383,2]
[373255255,1752923491369,-480.0,0.00020383,2]
[373255256,1752923491379,-740.01,0.00020383,2]
[373255257,1752923491388,-611.46,0.00020383,2]
[373255258,1752923491398,-719.67,0.00020383,2]
[373255259,1752923491407,-480.0,0.00020383,2]
[373255260,1752923491417,-640.66,0.00020383,2]
[373255261,1752923491427,-3120.9,0.00020383,2]
[373255262,1752923491437,-480.0,0.00020383,2]
[373255263,1752923491446,-480.0,0.00020383,2]
[373255264,1752923491456,-480.0,0.00020383,2]
[373255265,1752923491465,-576.22,0.00020383,2]
[373255266,1752923491475,-480.0,0.00020383,2]
[373255267,1752923491484,-480.0,0.00020383,2]
[373255268,1752923491494,-480.0,0.00020383,2]
[373255269,1752923491503,-480.0,0.00020383,2]
[373255270,1752923491513,-1090.9,0.00020383,2]
[373255271,1752923491523,-505.4,0.00020383,2]
[373255272,1752923491532,-489.33426351,0.00020383,2]
[373255273,1752923491542,-2170.19,0.00020383,2]
[373255274,1752923491552,-1446.51,0.00020383,2]
[373255275,1752923491561,-2791.79,0.00020383,2]
[373255276,1752923491571,-3957.3,0.00020383,2]
[373255277,1752923491581,-2107.89,0.00020383,2]
[373255278,1752923491591,-719.45,0.00020383,2]
[373255279,1752923491601,-276.43904554,0.00020383,2]
[373255280,1752923491611,-572.96,0.00020383,2]
[373255281,1752923491621,-484.19,0.00020383,2]
[373255282,1752923491630,-480.0,0.00020383,2]
[373255283,1752923491639,-480.0,0.00020383,2]
[373255284,1752923491649,-480.32933474,0.00020383,2]
[373255285,1752923491659,-817.32,0.00020383,2]
[373255286,1752923491668,-2393.91,0.00020383,2]
[373255287,1752923491678,-480.0,0.00020383,2]
[373255288,1752923491687,-707.73,0.00020383,2]
[373255289,1752923491697,-1478.18,0.00020383,2]
[373255290,1752923491707,-480.0,0.00020383,2]
[373255291,1752923491716,-595.11,0.00020383,2]
[373255292,1752923491793,-782.12,0.00020383,2]
[373255293,1752923491804,-227.31,0.00020383,2]
[373255294,1752923491816,-853.27,0.00020383,2]
[373255295,1752923491826,-480.0,0.00020383,2]
[373255296,1752923491836,-1300.19,0.00020383,2]
[373255297,1752923491847,-480.0,0.00020383,2]
[373255298,1752923491856,-888.45,0.00020383,2]
[373255299,1752923491866,-779.19,0.00020383,2]
[373255300,1752923491876,-501.9,0.00020383,2]
[373255301,1752923491886,-747.6,0.00020383,2]
[373255302,1752923491897,-480.0,0.00020383,2]
[373255303,1752923491907,-480.0,0.00020383,2]
[373255304,1752923491917,-642.57,0.00020383,2]
[373255305,1752923491928,-516.27,0.00020383,2]
[373255306,1752923491937,-876.37,0.00020383,2]
[373255307,1752923491947,-3056.86,0.00020383,2]
[373255308,1752923491956,-1752.83,0.00020383,2]
[373255309,1752923491966,-500.93,0.00020383,2]
[373255310,1752923491976,-480.0,0.00020383,2]
[373255311,1752923491986,-480.0,0.00020383,2]
[373255312,1752923491996,-698.66,0.00020383,2]
[373255313,1752923492005,-480.0,0.00020383,2]
[373255314,1752923492015,-1230.21,0.00020383,2]
[373255315,1752923492024,-1211.46,0.00020383,2]
[373255316,1752923492034,-1731.02,0.00020383,2]
[373255317,1752923492044,-480.0,0.00020383,2]
[373255318,1752923492053,-981.21,0.00020383,2]
[373255319,1752923492063,-4034.3,0.00020383,2]
[373255320,1752923492072,-704.38,0.00020383,2]
[373255321,1752923492082,-480.0,0.00020383,2]
[373255322,1752923492093,-480.0,0.00020383,2]
[373255323,1752923492102,-926.13,0.00020383,2]
[373255324,1752923492112,-480.0,0.00020383,2]
[373255325,1752923492122,-480.0,0.00020383,2]
[373255326,1752923492131,-18345.25,0.00020383,2]
[373255327,1752923492142,-1475.45,0.00020383,2]
[373255328,1752923492154,-1110.95,0.00020383,2]
[373255329,1752923492164,-1405.33,0.00020383,2]
[373255330,1752923492174,-480.0,0.00020383,2]
[373255331,1752923492184,-593.26,0.00020383,2]
[373255332,1752923492193,-2662.0,0.00020383,2]
[373255333,1752923492203,-496.53,0.00020383,2]
[373255334,1752923492212,-1500.91,0.00020383,2]
[373255335,1752923492224,-489.4,0.00020383,2]
[373255336,1752923492233,-594.51,0.00020383,2]
[373255337,1752923492243,-829.66,0.00020383,2]
[373255338,1752923492253,-566.69,0.00020383,2]
[373255339,1752923492262,-658.44,0.00020383,2]
[373255340,1752923492272,-588.02,0.00020383,2]
[373255341,1752923492281,-480.0,0.00020383,2]
[373255342,1752923492291,-2697.72,0.00020383,2]
[373255343,1752923492302,-480.0,0.00020383,2]
[373255344,1752923492311,-480.0,0.00020383,2]
[373255345,1752923492321,-870.46,0.00020383,2]
[373255346,1752923492330,-1772.6,0.00020383,2]
[373255347,1752923492341,-464.08737062,0.00020383,2]
[373255348,1752923492351,-480.0,0.00020383,2]
[373255349,1752923492361,-827.86,0.00020383,2]
[373255350,1752923492371,-480.0,0.00020383,2]
[373255351,1752923492380,-480.0,0.00020383,2]
[373255352,1752923492390,-793.88,0.00020383,2]
[373255353,1752923492400,-497.53,0.00020383,2]
[373255354,1752923492411,-480.0,0.00020383,2]
[373255355,1752923492421,-557.4,0.00020383,2]
[373255356,1752923492432,-496.0,0.00020383,2]
[373255357,1752923492442,-480.0,0.00020383,2]
[373255358,1752923492451,-535.74,0.00020383,2]
[373255359,1752923492461,-616.76,0.00020383,2]
[373255360,1752923492472,-480.0,0.00020383,2]
[373255361,1752923492483,-480.0,0.00020383,2]
[373255362,1752923492492,-480.0,0.00020383,2]
[373255363,1752923492502,-480.0,0.00020383,2]
[373255364,1752923492513,-556.1,0.00020383,2]
[373255365,1752923492524,-480.0,0.00020383,2]
[373255366,1752923492534,-480.0,0.00020383,2]
[373255367,1752923492543,-480.0,0.00020383,2]
[373255368,1752923492554,-509.79,0.00020383,2]
[373255369,1752923492564,-375.80593368,0.00020383,2]
[373255370,1752923493461,-3062.39,0.00019178,2]
[373255371,1752923493471,-480.0,0.00019178,2]
[373255372,1752923493481,-480.0,0.00019178,2]
[373255373,1752923493491,-480.0,0.00019178,2]
[373255374,1752923493502,-3062.39,0.00019287,2]
[373255375,1752923493512,-480.0,0.00019287,2]
[373255376,1752923493521,-480.0,0.00019287,2]
[373255377,1752923493531,-3062.39,0.00019397,2]
[373255378,1752923493541,-420.0,0.00019397,2]
[373255379,1752923493550,-480.0,0.00019397,2]
[373255380,1752923493560,-480.0,0.00019506,2]
[373255381,1752923493570,-3062.39,0.00019506,2]
[373255382,1752923493580,-191.4,0.00019506,2]
[373255383,1752923493591,-480.0,0.00019616,2]
[373255384,1752923493601,-3062.39,0.00019616,2]
[373255385,1752923493612,-480.0,0.00019726,2]
[373255386,1752923493630,-3062.39,0.00019726,2]
[373255387,1752923493640,-629.95,0.00019835,2]
[373255388,1752923493651,-480.0,0.00019835,2]
[373255389,1752923493661,-3062.39,0.00019835,2]
[373255390,1752923493672,-629.95,0.00019945,2]
[373255391,1752923493682,-480.0,0.00019945,2]
[373255392,1752923493692,-629.95,0.00020054,2]
[373255393,1752923493703,-480.0,0.00020054,2]
[373255394,1752923493713,-484.74,0.00020164,2]
[373255395,1752923493723,-629.95,0.00020164,2]
[373255396,1752923493733,-480.0,0.00020164,2]
[373255397,1752923493744,-484.74,0.00020273,2]
[373255398,1752923493754,-629.95,0.00020273,2]
[373255399,1752923493763,-480.0,0.00020273,2]
[373255400,1752923493774,-104.19406632,0.00020383,2]
[373255401,1752923493784,-488.36,0.00020383,2]
[373255402,1752923493794,-563.29,0.00020383,2]
[373255403,1752923493805,-518.34,0.00020383,2]
[373255404,1752923493815,-480.0,0.00020383,2]
[373255405,1752923493825,-480.0,0.00020383,2]
[373255406,1752923493835,-480.0,0.00020383,2]
[373255407,1752923493846,-660.36,0.00020383,2]
[373255408,1752923493856,-563.78,0.00020383,2]
[373255409,1752923493867,-510.22,0.00020383,2]